fUSD/lending_fUSD_20240205
["ID","MTS","AMOUNT","RATE_DAILY","PERIOD"]
[313288539,1707091491877,563.81510033,0.00020378,2]
[313288540,1707091517119,1005.86579131,0.00020607,2]
[313288541,1707091536759,6097.38513295,0.00022211,2]
[313288542,1707091545974,858.66470521,0.00020607,2]
[313288543,1707091554751,6097.38513295,0.00020607,2]
[313288544,1707091557526,500.0,0.00020607,2]
[313288545,1707091557979,808.3198501,0.00020607,2]
[313288546,1707091561629,534.42411814,0.00020607,2]
[313288547,1707091564452,1025.34814346,0.00020607,2]
[313288548,1707091565882,19009.56308954,0.00020607,2]
[313288549,1707091567628,2327.96064877,0.00020607,2]
[313288550,1707091568768,5202.33214498,0.00020607,2]
[313288551,1707091571110,1005.86579131,0.00020607,2]
[313288552,1707091571364,848.51334281,0.00020607,2]
[313288553,1707091572755,6097.38513295,0.00020607,2]
[313288554,1707091574747,1101.04178806,0.00020607,2]
[313288555,1707091575947,859.4223849,0.00020607,2]
[313288556,1707091576161,1122.3360965,0.00020607,2]
[313288557,1707091577889,561.86622075,0.00020378,2]
[313288558,1707091577961,808.3198501,0.00020607,2]
[313288559,1707091579639,534.63116618,0.00020607,2]
[313288560,1707091582445,1025.34814346,0.00020607,2]
[313288561,1707091587860,2187.64640673,0.00020401,2]
[313288562,1707091587890,19009.56308954,0.00020607,2]
[313288563,1707091588554,5202.33214498,0.00020607,2]
[313288564,1707091589617,2327.96064877,0.00020607,2]
[313288565,1707091590939,1101.04178806,0.00020607,2]
[313288566,1707091591376,848.51334281,0.00020607,2]
[313288567,1707091591952,857.90702552,0.00020607,2]
[313288568,1707091592890,1035.68155273,0.00020607,2]
[313288569,1707091593167,1005.86579131,0.00020607,2]
[313288570,1707091594183,1122.3360965,0.00020607,2]
[313288571,1707091595548,500.0,0.00020607,2]
[313288572,1707091597887,561.86622075,0.00020378,2]
[313288573,1707091599619,534.63116618,0.00020607,2]
[313288574,1707091602442,1025.76280394,0.00020607,2]
[313288575,1707091605848,2187.64640673,0.00020401,2]
[313288576,1707091606175,19025.7945806,0.00020607,2]
[313288577,1707091607624,2327.96064877,0.00020607,2]
[313288578,1707091608558,5202.33214498,0.00020607,2]
[313288579,1707091609964,808.3198501,0.00020607,2]
[313288580,1707091610764,1101.04178806,0.00020607,2]
[313288581,1707091611128,1005.86579131,0.00020607,2]
[313288582,1707091613947,858.66470521,0.00020607,2]
[313288583,1707091614163,1122.77547519,0.00020607,2]
[313288584,1707091617523,500.0,0.00020607,2]
[313288585,1707091617894,561.86622075,0.00020378,2]
[313288586,1707091621620,2327.96064877,0.00020607,2]
[313288587,1707091623841,2187.64640673,0.00020401,2]
[313288588,1707091624753,6099.83638977,0.00020607,2]
[313288589,1707091627116,298.46618988,0.00020607,2]
[313288590,1707091627961,808.3198501,0.00020607,2]
[313288591,1707091628734,1101.04178806,0.00020607,2]
[313288592,1707091628875,1036.55041269,0.00020607,2]
[313288593,1707091629786,534.01002206,0.00020607,2]
[313288594,1707091630448,1025.76280394,0.00020607,2]
[313288595,1707091633369,848.83921823,0.00020607,2]
[313288596,1707091633951,858.66470521,0.00020607,2]
[313288597,1707091634170,1121.89671781,0.00020607,2]
[313288598,1707091635525,500.0,0.00020607,2]
[313288599,1707091637890,561.86622075,0.00020378,2]
[313288600,1707091639642,2326.11843272,0.00020607,2]
[313288601,1707091639859,678.05260258,0.00020401,2]
[313288602,1707091639890,19025.7945806,0.00020607,2]
[313288603,1707091644556,5202.33214498,0.00020607,2]
[313288604,1707091644737,1101.04178806,0.00020607,2]
[313288605,1707091644766,6099.83638977,0.00020607,2]
[313288606,1707091645126,1005.86579131,0.00020607,2]
[313288607,1707091648454,1024.5188225,0.00020607,2]
[313288608,1707091648879,1036.55041269,0.00020607,2]
[313288609,1707091651969,808.3198501,0.00020607,2]
[313288610,1707091653998,535.04346075,0.00020607,2]
[313288611,1707091654035,561.86622075,0.00020378,2]
[313288612,1707091654165,788.41909016,0.00020607,2]
[313288613,1707091654193,332.69861229,0.00020607,2]
[313288614,1707091655966,858.66470521,0.00020607,2]
[313288615,1707091657899,19033.17052521,0.00020607,2]
[313288616,1707091660774,6102.26699887,0.00020607,2]
[313288617,1707091662560,860.84268204,0.00020607,2]
[313288618,1707091664764,1095.68052298,0.00020607,2]
[313288619,1707091665126,968.86551811,0.00020607,2]
[313288620,1707091666874,1036.55041269,0.00020607,2]
[313288621,1707091666901,766.39,0.00022495,2]
[313288622,1707091667981,808.3198501,0.00020607,2]
[313288623,1707091668460,501.32168083,0.00020607,2]
[313288624,1707091671636,533.80477553,0.00020607,2]
[313288625,1707091671994,949.53401727,0.00020607,2]
[313288626,1707091673871,306.43585263,0.00020607,2]
[313288627,1707091674899,158.9509689,0.00021981,2]
[313288628,1707091677900,19018.41863599,0.00020607,2]
[313288629,1707091678845,270.82946089,0.00020607,2]
[313288630,1707091679712,162.66775705,0.00020607,2]
[313288631,1707091680086,381.99146993,0.00020607,2]
[313288632,1707091680235,155.0,0.00020607,2]
[313288633,1707091680262,362.36944005,0.00020607,2]
[313288634,1707091681137,596.83786055,0.00020607,2]
[313288635,1707091682190,744.16390881,0.00021752,2]
[313288636,1707091682745,1101.45649291,0.00020607,2]
[313288637,1707091682774,6102.26699887,0.00020607,2]
[313288638,1707091684849,943.73374824,0.00020607,2]
[313288639,1707091684884,1033.07497285,0.00020607,2]
[313288640,1707091685698,439.5286448,0.00020607,2]
[313288641,1707091685986,676.87480703,0.00020607,2]
[313288642,1707091687150,406.51680293,0.0002221,2]
[313288643,1707091687897,250.99144104,0.00020378,2]
[313288644,1707091690095,735.20388499,0.00021,2]
[313288645,1707091691902,19025.7945806,0.00020607,2]
[313288646,1707091693641,534.42411814,0.00020607,2]
[313288647,1707091698225,155.85105563,0.00020607,2]
[313288648,1707091698777,6102.26699887,0.00020607,2]
[313288649,1707091700254,362.36944005,0.00020607,2]
[313288650,1707091702740,314.59208232,0.00020607,2]
[313288651,1707091706884,1035.68155273,0.00020607,2]
[313288652,1707091708350,2249.52,0.00022468,2]
[313288653,1707091708741,169.02,0.00022468,2]
[313288654,1707091715907,3796.64819423,0.00020607,2]
[313288655,1707091717910,267.6104557,0.00020607,2]
[313288656,1707091718254,362.36944005,0.00020607,2]
[313288657,1707091726918,732.6224626,0.00020607,2]
[313288658,1707091735915,267.6104557,0.00020607,2]
[313288659,1707091736798,1181.14536076,0.00020607,2]
[313288660,1707091740250,362.36944005,0.00020607,2]
[313288661,1707091758259,362.36944005,0.00020607,2]
[313288662,1707091759912,166.16102558,0.00020607,2]
[313288663,1707091782260,472.03283061,0.00020607,2]
[313288664,1707091800912,612.13701719,0.00021,2]
[313288665,1707091802967,150.0,0.00020607,2]
[313288666,1707091803165,150.0,0.00020607,2]
[313288667,1707091803366,249.56561815,0.00020607,2]
[313288668,1707091808251,23900.0,0.00022392,2]
[313288669,1707091819128,610.60494411,0.00021,2]
[313288670,1707091820765,200.0,0.00022392,2]
[313288671,1707091823989,544.41,0.00021845,2]
[313288673,1707091831985,-300.0,0.00022534,2]
[313288674,1707091831995,-202.38963629,0.00022541,2]
[313288675,1707091832012,-352.31152504,0.00022541,2]
[313288676,1707091832024,-1341.53946258,0.00022541,2]
[313288677,1707091832049,-1333.75937609,0.00022541,2]
[313288678,1707091832058,-2500.0,0.000226,8]
[313288679,1707091832068,-390.72,0.00022634,2]
[313288680,1707091832077,-150.0,0.00022667,2]
[313288681,1707091832086,-14767.32384197,0.00022668,2]
[313288682,1707091832096,-155.8256877,0.00022669,2]
[313288683,1707091832107,-4713.55944434,0.000227,8]
[313288684,1707091832124,-286.44055566,0.000227,8]
[313288685,1707091832134,-101.16972466,0.00022769,2]
[313288686,1707091832145,-180.81006774,0.00022769,2]
[313288687,1707091832155,-1464.32195567,0.000228,2]
[313288688,1707091832167,-180.38446615,0.000228,2]
[313288689,1707091832176,-1341.91002175,0.000228,8]
[313288690,1707091832193,-1809.88952973,0.000228,8]
[313288691,1707091832206,-2147.15410892,0.000228,8]
[313288692,1707091832217,-1548.59138424,0.000228,8]
[313288693,1707091832228,-652.45495536,0.000228,8]
[313288694,1707091832238,-165.43244469,0.00022897,2]
[313288695,1707091832247,-155.0,0.00022897,2]
[313288696,1707091832256,-178.41163131,0.00022897,2]
[313288697,1707091832266,-178.02648423,0.00022899,2]
[313288698,1707091832275,-182.48395622,0.00022899,2]
[313288699,1707091832284,-1800.31719355,0.00022899,2]
[313288700,1707091832301,-2954.67761916,0.00022899,2]
[313288701,1707091832313,-1417.13446024,0.00022899,2]
[313288702,1707091832323,-165598.51326983,0.00022899,2]
[313288705,1707091832334,-412.77292295,0.00022899,2]
[313288708,1707091832345,-1962.06,0.00022899,2]
[313288710,1707091832361,-395.76320725,0.00022899,2]
[313288712,1707091832373,-311.40974436,0.00022899,2]
[313288715,1707091832391,-2013.91252975,0.00022899,2]
[313288717,1707091832403,-619.10457445,0.00022899,2]
[313288731,1707091838164,-200403.32381393,0.00022899,2]
[313288732,1707091838173,-517.16610711,0.00022899,2]
[313288733,1707091838183,-58767.176325,0.000229,2]
[313288734,1707091838274,-12020.82184978,0.000229,2]
[313288735,1707091838286,-727.11163686,0.000229,2]
[313288736,1707091838299,-741.27723955,0.000229,2]
[313288737,1707091838311,-420.8888349,0.000229,2]
[313288740,1707091838930,612.13701719,0.00022392,2]
[313288745,1707091841322,-3425.18029514,0.000229,2]
[313288746,1707091841334,-1211.12999996,0.000229,2]
[313288753,1707091843036,-10516.09719984,0.000229,2]
[313288754,1707091843091,-27408.78735641,0.000229,2]
[313288755,1707091843101,-526.34074055,0.000229,2]
[313288756,1707091843111,-10000.0,0.000229,8]
[313288757,1707091843121,-155.82568765,0.00022924,2]
[313288758,1707091843134,-251.92996294,0.00022989,2]
[313288759,1707091843145,-244.23558874,0.00022989,2]
[313288760,1707091843155,-90117.12760102,0.00022999,2]
[313288761,1707091843170,-4234.17134441,0.00022999,2]
[313288762,1707091843182,-9408.96608539,0.00022999,2]
[313288763,1707091843253,-165.43244469,0.00022899,2]
[313288764,1707091843263,-3149.11236295,0.00022999,2]
[313288765,1707091843275,-280.1375,0.00022999,2]
[313288845,1707091846816,-1656.25214712,0.00022799,2]
[313288846,1707091846827,-327.56288455,0.00022799,2]
[313288847,1707091854911,610.60494411,0.00022392,2]
[313288848,1707091858099,732.77315016,0.00021,2]
[313288849,1707091932849,507.25490233,0.00028,120]
[313288850,1707092008150,733.0092658,0.00021,2]
[313288851,1707092026125,733.0092658,0.00021,2]
[313288852,1707092040126,733.0092658,0.00021,2]
[313288853,1707092056321,733.0092658,0.00021,2]
[313288854,1707092070375,10117.663612,0.00022467,2]
[313288855,1707092074137,733.0092658,0.00021,2]
[313288856,1707092087799,640.0,0.0002242,2]
[313288857,1707092092132,710.20077457,0.00021,2]
[313288858,1707092113603,2476.89,0.0002242,2]
[313288859,1707092121620,200.0,0.0002242,2]
[313288860,1707092123113,2000.0,0.0002242,2]
[313288861,1707092219383,23900.0,0.00022494,2]
[313288862,1707092248088,176.92,0.00022,2]
[313288863,1707092299182,358.58,0.00022296,2]
[313288864,1707092303211,467.35,0.00020378,2]
[313288865,1707092324947,10000.0,0.00022213,2]
[313288866,1707092347437,272.2,0.00022213,2]
[313288867,1707092395471,250.0,0.00022213,2]
[313288868,1707092407755,250.0,0.00022213,2]
[313288869,1707092428511,263.14,0.00022255,2]
[313288870,1707092445610,166.77,0.000225,2]
[313288871,1707092512214,162.3492961,0.00022501,2]
[313288872,1707092534301,488.0,0.00022119,2]
[313288873,1707092555404,1038.12,0.0002211,2]
[313288874,1707092601971,2039.01,0.00022149,2]
[313288875,1707092607560,150.0,0.00022,2]
[313288876,1707092638159,150.0,0.00022149,2]
[313288877,1707092675721,150.0,0.00022,2]
[313288878,1707092692061,4971.25,0.00022154,2]
[313288879,1707092730886,459.22,0.0002032,2]
[313288880,1707092745145,10000.0,0.00022154,2]
[313288881,1707092777038,2000.0,0.00022154,2]
[313288882,1707092785807,272.2,0.00022233,2]
[313288883,1707092866335,166.77,0.00022409,2]
[313288884,1707092875167,180.91,0.00022392,2]
[313288885,1707092884081,353.48,0.00022,2]
[313288886,1707092923533,156.08735628,0.00022484,2]
[313288887,1707093010326,150.0,0.00022471,2]
[313288910,1707093034467,-522.74382305,0.00022515,2]
[313288911,1707093034476,-250.0,0.00022516,2]
[313288912,1707093034486,-4503.42146419,0.00022517,2]
[313288913,1707093034495,-156.08735628,0.00022559,2]
[313288914,1707093034504,-459.22,0.00022583,2]
[313288915,1707093034513,-1200.0,0.000226,8]
[313288916,1707093034522,-156.08735628,0.00022635,2]
[313288917,1707093034531,-1269.2453602,0.000227,8]
[313288918,1707093034546,-655.60712406,0.000227,8]
[313288919,1707093034557,-575.14751574,0.000227,8]
[313288920,1707093034566,-150.0,0.00022709,2]
[313288921,1707093034575,-156.08735628,0.0002271,2]
[313288922,1707093034584,-156.08735628,0.00022786,2]
[313288923,1707093034593,-195.73557477,0.00022798,2]
[313288924,1707093034602,-166.77,0.00022798,2]
[313288925,1707093034611,-31677.35586833,0.00022799,2]
[313288927,1707093034765,-499.99,0.00022799,2]
[313288928,1707093034775,-3700.0,0.000228,8]
[313288929,1707093034784,-156.08735628,0.00022861,2]
[313288930,1707093034793,-155.0,0.00022882,2]
[313288931,1707093034803,-157.17895381,0.000229,2]
[313288932,1707093034813,-178.02648422,0.000229,2]
[313288933,1707093034822,-5750.12806544,0.000229,2]
[313288934,1707093034831,-517.16610711,0.000229,2]
[313288935,1707093034840,-5000.0,0.000229,8]
[313288936,1707093034850,-556.3649967,0.00022912,2]
[313288937,1707093034859,-350.89382702,0.00022912,2]
[313288938,1707093034868,-156.08735628,0.00022936,2]
[313288939,1707093034877,-171.0205,0.00022998,3]
[313288940,1707093034886,-171.0205,0.00022998,3]
[313288941,1707093034895,-79138.41549916,0.00022999,2]
[313288942,1707093034911,-92580.12690186,0.00022999,2]
[313288943,1707093034933,-4810.59504121,0.00022999,2]
[313288944,1707093034945,-6817.37904557,0.00022999,2]
[313288948,1707093038426,-1518.08501541,0.00022899,2]
[313288949,1707093038437,-29787.6227743,0.00022999,2]
[313289172,1707093040788,-657.02183902,0.00022999,2]
[313289175,1707093040799,-2523.51838836,0.00022999,2]
[313289177,1707093040811,-1107.76007557,0.00022999,2]
[313289193,1707093040950,-15676.81570379,0.00022999,2]
[313289420,1707093043305,-297.87035,0.00022999,2]
[313289439,1707093043469,-311.62466244,0.00022999,2]
[313289441,1707093043481,-775.12289306,0.00022999,2]
[313289443,1707093043493,-690.33082187,0.00022999,2]
[313289511,1707093046407,-289.63799347,0.00022999,2]
[313289512,1707093046463,-495.71718931,0.00022999,2]
[313289515,1707093062086,158.70252961,0.00022471,2]
[313289516,1707093137310,421.03960501,0.00022075,2]
[313289517,1707093149070,155.0,0.00022,2]
[313289518,1707093204289,434.03,0.0002211,2]
[313289519,1707093207051,153.51307248,0.00022495,2]
[313289520,1707093267321,1678.89,0.00022115,2]
[313289521,1707093331472,250.0,0.00022127,2]
[313289522,1707093332934,2705.0,0.00022127,2]
[313289523,1707093416110,1827.86,0.00021998,2]
[313289524,1707093425478,487.11,0.00022068,2]
[313289525,1707093464496,164.77,0.00021943,2]
[313289526,1707093474322,194.81,0.00021967,10]
[313289527,1707093502056,1852.42,0.00021967,2]
[313289528,1707093531554,5559.62,0.00021876,2]
[313289529,1707093536517,390.4,0.00021876,2]
[313289530,1707093556554,2209.21,0.00021876,2]
[313289531,1707093558169,9112.44,0.00021876,2]
[313289532,1707093580099,3596.28,0.00021878,2]
[313289533,1707093609784,2987.57,0.00021876,2]
[313289534,1707093625132,1907.15,0.00021876,2]
[313289535,1707093637064,10000.0,0.00021918,2]
[313289536,1707093663257,2000.0,0.00021873,2]
[313289537,1707093697213,430.98,0.00019955,2]
[313289538,1707093697487,430.98,0.00022219,2]
[313289539,1707093722662,150.0,0.00021873,2]
[313289540,1707093751135,8607.21,0.00022051,2]
[313289541,1707093757197,1388.4965607,0.00022479,2]
[313289542,1707093760597,156.13,0.00022043,2]
[313289543,1707093760833,156.13,0.00022119,2]
[313289544,1707093761034,156.13,0.00022196,2]
[313289545,1707093761423,156.13,0.00022273,2]
[313289546,1707093761653,156.13,0.00022349,2]
[313289547,1707093761860,156.13,0.00022426,2]
[313289548,1707093780105,996.51,0.00021869,2]
[313289549,1707093806721,180.91,0.00021867,2]
[313289550,1707093875046,250.0,0.00021867,2]
[313289551,1707093918212,1413.07,0.00021869,2]
[313289552,1707093994141,687.68,0.0002187,2]
[313289553,1707094107247,2000.0,0.00021876,2]
[313289554,1707094133997,404.68,0.00019961,2]
[313289555,1707094134033,150.0,0.00021876,2]
[313289556,1707094134222,404.68,0.00022225,2]
[313289557,1707094157557,153.97217766,0.0002245,2]
[313289558,1707094162551,153.97217766,0.00022488,2]
[313289559,1707094169765,10000.0,0.00021918,2]
[313289560,1707094217589,830.42,0.00021852,2]
[313289578,1707094234840,-156.13,0.00022502,2]
[313289579,1707094234849,-153.97217766,0.00022525,2]
[313289580,1707094234858,-3931.59382234,0.00022546,2]
[313289581,1707094234902,-571.82764185,0.00022546,2]
[313289582,1707094234911,-13058.29970995,0.00022547,2]
[313289583,1707094234920,-150.0,0.0002255,2]
[313289584,1707094234929,-153.97217766,0.00022563,2]
[313289585,1707094234939,-156.13,0.00022579,2]
[313289586,1707094234948,-600.0,0.000226,8]
[313289587,1707094234957,-153.97217766,0.000226,2]
[313289588,1707094234966,-153.97217766,0.00022638,2]
[313289589,1707094234975,-156.13,0.00022655,2]
[313289590,1707094234984,-153.97217766,0.00022675,2]
[313289591,1707094234993,-356.1578955,0.00022687,2]
[313289592,1707094235002,-155.0,0.00022696,2]
[313289593,1707094235011,-13632.44,0.00022696,2]
[313289594,1707094235020,-50487.96192473,0.00022697,2]
[313289598,1707094237583,-7446.72420584,0.00022697,2]
[313289599,1707094237592,-2151.752,0.00022699,2]
[313289600,1707094237601,-1200.0,0.000227,8]
[313289601,1707094237611,-153.97217766,0.00022713,2]
[313289602,1707094237620,-150.0,0.00022727,2]
[313289603,1707094237629,-156.13,0.00022732,2]
[313289604,1707094237638,-150.0,0.0002274,2]
[313289605,1707094237648,-150.0,0.00022741,2]
[313289606,1707094237657,-150.0,0.00022741,2]
[313289607,1707094237667,-150.0,0.00022743,2]
[313289608,1707094237676,-150.0,0.00022743,2]
[313289609,1707094237688,-153.97217766,0.0002275,2]
[313289610,1707094237699,-150.0,0.00022753,2]
[313289611,1707094237708,-261.38690075,0.00022759,2]
[313289612,1707094237717,-150.0,0.0002276,2]
[313289613,1707094237726,-150.0,0.0002276,2]
[313289614,1707094237735,-150.0,0.00022773,2]
[313289615,1707094237744,-153.97217766,0.00022788,2]
[313289616,1707094237753,-150.0,0.00022788,2]
[313289617,1707094237763,-150.0,0.0002279,2]
[313289618,1707094237772,-150.0,0.00022796,2]
[313289619,1707094237781,-150.0,0.00022796,2]
[313289620,1707094237790,-833.33210667,0.000228,2]
[313289628,1707094238005,-166.66789333,0.000228,2]
[313289629,1707094238014,-1800.0,0.000228,8]
[313289630,1707094238023,-150.0,0.00022803,2]
[313289631,1707094238032,-150.0,0.00022806,2]
[313289632,1707094238042,-156.13,0.00022809,2]
[313289633,1707094238051,-150.0,0.00022817,2]
[313289634,1707094238060,-150.0,0.00022822,2]
[313289635,1707094238069,-153.97217766,0.00022825,2]
[313289636,1707094238078,-150.0,0.00022835,2]
[313289637,1707094238087,-150.0,0.00022849,2]
[313289638,1707094238095,-153.97217766,0.00022863,2]
[313289639,1707094238104,-150.0,0.00022864,2]
[313289640,1707094238114,-150.0,0.00022867,2]
[313289641,1707094238124,-150.0,0.00022867,2]
[313289642,1707094238132,-150.0,0.00022872,2]
[313289643,1707094238141,-150.0,0.00022874,2]
[313289644,1707094238149,-150.0,0.00022877,2]
[313289645,1707094238158,-150.0,0.00022879,2]
[313289646,1707094238167,-150.0,0.00022879,2]
[313289647,1707094238175,-156.13,0.00022885,2]
[313289648,1707094238184,-150.0,0.00022887,2]
[313289649,1707094238194,-150.0,0.00022888,2]
[313289650,1707094238203,-150.0,0.00022891,2]
[313289651,1707094238213,-300.0,0.00022898,2]
[313289652,1707094238222,-245.5706,0.00022899,2]
[313289653,1707094238231,-999.8928,0.00022899,2]
[313289654,1707094238240,-427.7708,0.00022899,2]
[313289655,1707094238249,-1442.4692965,0.00022899,2]
[313289656,1707094238258,-150.0,0.00022899,2]
[313289657,1707094238267,-2500.0,0.000229,8]
[313289658,1707094238276,-153.97217766,0.000229,2]
[313289659,1707094238285,-150.0,0.00022902,2]
[313289660,1707094238294,-162.48082418,0.00022912,2]
[313289661,1707094238303,-150.0,0.00022917,2]
[313289662,1707094238312,-150.0,0.0002292,2]
[313289663,1707094238322,-150.0,0.00022926,2]
[313289664,1707094238331,-150.0,0.00022934,2]
[313289665,1707094238340,-5364.80512875,0.00022938,2]
[313289666,1707094238349,-233.92921802,0.00022938,2]
[313289667,1707094238358,-153.97217766,0.00022938,2]
[313289668,1707094238367,-370.9099978,0.00022938,2]
[313289669,1707094238376,-150.0,0.00022939,2]
[313289670,1707094238385,-150.0,0.00022946,2]
[313289671,1707094238395,-150.0,0.00022954,2]
[313289672,1707094238404,-150.0,0.0002296,2]
[313289673,1707094238414,-156.13,0.00022962,2]
[313289674,1707094238423,-150.0,0.00022963,2]
[313289675,1707094238432,-150.0,0.00022968,2]
[313289676,1707094238441,-150.0,0.00022975,2]
[313289677,1707094238450,-150.0,0.00022983,2]
[313289678,1707094238460,-150.0,0.00022985,2]
[313289679,1707094238469,-150.0,0.00022988,2]
[313289680,1707094238478,-150.0,0.00022993,2]
[313289681,1707094238487,-3628.74973235,0.00022997,2]
[313289682,1707094238496,-155.0,0.00022998,2]
[313289683,1707094238506,-1080.02787074,0.00022998,2]
[313289684,1707094238515,-1650.0,0.00022998,2]
[313289685,1707094238524,-208.41030953,0.00022998,2]
[313289686,1707094238533,-365.07230987,0.00022998,2]
[313289687,1707094238543,-171.0205,0.00022998,3]
[313289688,1707094238552,-171.0205,0.00022998,3]
[313289689,1707094238561,-171.0205,0.00022998,3]
[313289690,1707094238570,-171.0205,0.00022998,3]
[313289691,1707094238579,-50431.2719321,0.00022999,2]
[313289692,1707094239971,-22395.00259949,0.00022999,2]
[313289693,1707094240148,-681.11999955,0.00022999,2]
[313289694,1707094240159,-2121.70792826,0.00022999,2]
[313289695,1707094240484,2975.1026,0.00022449,2]
[313289799,1707094242349,-4923.0559,0.00022999,2]
[313289803,1707094242409,-875.01151841,0.00022999,2]
[313289804,1707094242470,-612.19604369,0.00022999,2]
[313289805,1707094242532,-2342.3658383,0.00022999,2]
[313289806,1707094242543,-4811.24026271,0.00022999,2]
[313289807,1707094242555,-10551.69599997,0.00022999,2]
[313289808,1707094242594,-288.11805248,0.00022999,2]
[313289816,1707094245365,-162.82372582,0.00022938,2]
[313289817,1707094245375,-3716.31941562,0.00022999,2]
[313289818,1707094245438,-13030.925832,0.00022999,2]
[313289819,1707094245450,-2440.30931548,0.00022999,2]
[313289820,1707094245558,-744.78097563,0.00022999,2]
[313289821,1707094245673,-6407.21055527,0.00022999,2]
[313289822,1707094245685,-1718.67884822,0.00022999,2]
[313289823,1707094245700,-274.73935495,0.00022999,2]
[313289824,1707094245734,-1390.99999998,0.00022999,2]
[313289825,1707094330491,3134.76429599,0.00021847,2]
[313289826,1707094368300,18708.5734,0.00022449,2]
[313289827,1707094446880,3999.3006603,0.0002,2]
[313289828,1707094542875,156.72680933,0.00022497,2]
[313289829,1707094635449,379.32,0.00020856,2]
[313289830,1707094743059,250.0,0.00022052,2]
[313289831,1707094792198,764.92,0.00022049,2]
[313289832,1707094826214,180.91,0.00022049,2]
[313289833,1707094871642,550.15,0.00022031,2]
[313289834,1707094905427,164.77,0.00022031,2]
[313289835,1707095061019,375.47,0.00020059,2]
[313289836,1707095061258,375.47,0.00022323,2]
[313289837,1707095146538,159.87,0.00022158,2]
[313289838,1707095146742,159.87,0.00022254,2]
[313289839,1707095146982,159.87,0.0002235,2]
[313289840,1707095147373,159.87,0.00022446,2]
[313289841,1707095159216,250.0,0.0002194,2]
[313289842,1707095210516,637.43,0.00021928,2]
[313289843,1707095336915,580.92,0.00022085,2]
[313289844,1707095340702,559.88,0.0002191,2]
[313289854,1707095431587,-159.87,0.00022542,2]
[313289855,1707095431597,-533.43574779,0.00022596,2]
[313289856,1707095431707,-425.26570303,0.00022596,2]
[313289857,1707095431828,-3544.72001337,0.00022596,2]
[313289858,1707095431837,-157.23939688,0.00022616,2]
[313289859,1707095431846,-159.87,0.00022639,2]
[313289860,1707095431855,-157.23939688,0.00022676,2]
[313289861,1707095431864,-221.12659287,0.000227,8]
[313289892,1707095437566,-78.87340713,0.000227,8]
[313289894,1707095437575,-150.0,0.0002273,2]
[313289896,1707095437584,-159.87,0.00022735,2]
[313289898,1707095437593,-150.0,0.00022735,2]
[313289900,1707095437602,-157.23939688,0.00022736,2]
[313289902,1707095437611,-150.0,0.00022777,2]
[313289904,1707095437620,-157.23939688,0.00022796,2]
[313289906,1707095437629,-600.0,0.000228,8]
[313289908,1707095437638,-800.0,0.00022814,2]
[313289910,1707095437647,-200.0,0.00022815,2]
[313289912,1707095437656,-800.0,0.00022815,2]
[313289914,1707095437665,-800.0,0.00022815,2]
[313289916,1707095437677,-159.87,0.00022831,2]
[313289918,1707095437686,-157.23939688,0.00022856,2]
[313289920,1707095437695,-457.37,0.00022861,2]
[313289922,1707095437704,-221.13755376,0.00022877,2]
[313289923,1707095437714,-5759.7154,0.00022899,2]
[313289924,1707095437723,-439.308,0.00022899,2]
[313289925,1707095437732,-636.034,0.00022899,2]
[313289926,1707095437741,-6037.4265,0.00022899,2]
[313289927,1707095437750,-4196.9484,0.00022899,2]